Cogmind - Beta 16 @@@ ROGUE MODE // 2025.11.08 @ 04:40:11 Player: ChromeKnight Result: Heading to fleet! Performance ------------- Evolutions (9) 4500 Regions Visited (21) 4200 Robots Destroyed (472) 2360 Value Destroyed (24724) 24724 Prototype IDs (50) 1000 Alien Tech Used (15) 3000 Bonus (18685) 18685 TOTAL SCORE: 58469 Bonus ------- Triggered High Security 500 High Alert Combat Kills 5340 Follower Combat Kills 1882 Network Hubs Disabled 400 Built Enhanced Grunts 300 Met R17 at Cetus 500 Found Hidden Lab 3000 Used Core Reset Matrix 3000 Met R17 at Research 2000 Scanned by Researcher 500 Win 3000 Friendly Fire -1737 Cogmind --------- Core Integrity 1027/1600 Matter 295/300 Energy 1985/1991 System Corruption 0% +Membrane Temperature Cool (9) +ITN Movement Walking (124) Location To Fleet Rendezvous Parts ------- > --- POWER (3) -------- VC-Quantum Reactor > --- PROPULSION (6) --- Shield-HC Exoskeleton > --- UTILITY (13) ----- Armored Scrap Engine Large Storage Unit Experimental Core Analyzer Advanced Kinecellerator Advanced Weapon Cycler Advanced Weapon Cycler Advanced Transmission Jammer Heavy Regenerative Plating Experimental EM Shield Advanced Force Field Long-range Tractor Beam > --- WEAPON (4) ------- Hvy. Thermic Nova Construct/C > --- INVENTORY (17) --- Light Quantum Reactor Improved Quantum Reactor Advanced Heat Sink Experimental Energy Well (600) Experimental Energy Well (600) Advanced Sensor Array Advanced Transmission Jammer Graphene Brace Experimental Force Field Improved Dynamic Insulation System Integrity Redistributor Peak State ------------ > --- POWER ------------ VC-Quantum Reactor > --- PROPULSION ------- Shield-HC Exoskeleton > --- UTILITY ---------- Armored Scrap Engine Large Storage Unit Experimental Core Analyzer Advanced Kinecellerator Advanced Weapon Cycler Advanced Weapon Cycler Advanced Transmission Jammer Heavy Regenerative Plating Experimental EM Shield Advanced Force Field > --- WEAPON ----------- Enhanced Nova Cannon Fusion Bomb Launcher Hvy. Thermic Nova Construct/C > --- INVENTORY -------- Light Quantum Reactor Improved Quantum Reactor Advanced Heat Sink Experimental Energy Well Experimental Energy Well Advanced Sensor Array Advanced Transmission Jammer Graphene Brace Experimental Force Field Improved Dynamic Insulation System Long-range Tractor Beam Integrity Redistributor Integrity Redistributor Enhanced Quantum Rifle [Rating: 214] Favorites ----------- Power Constructs Engine Improved Ion Engine Power Core Enhanced Nuclear Core Reactor Constructs Propulsion Constructs Treads Light Treads Leg Constructs Wheel Compact Wheel Hover Unit Antigrav System Utility Large Storage Unit Device Armored Scrap Engine Storage Large Storage Unit Processor Advanced Signal Interpreter Hackware Hacking Suite Protection Improved Utility Shielding Weapon Constructs Energy Gun Constructs Energy Cannon Constructs Ballistic Gun Constructs Ballistic Cannon Light Cannon Launcher Subdweller Shrapnel Launcher Impact Weapon Power Maul Slashing Weapon Katana Build | -11 -10 -10 -10 -8 -7 -7 -7 -5 -5 -5 -5 -5 -4 -4 -4 -3 -3 -2 -2 -2 -1 ------- Run | Yrd Mat Min Sub Mat Fac Sto Rec Fac Ext Cet Arc Hub Fac Arm Lab Res Tes Res Qua Sec Acc Slots Evolved 18 | . . . . 4 2 . . 4 . . . . 2 . . 2 . 2 . . 2 Power 2 | . . . . . . . . 1 . . . . . . . 1 . . . . . Propulsion 4 | . . . . 2 . . . 1 . . . . . . . . . 1 . . . Utility 10 | . . . . 2 2 . . 1 . . . . 1 . . 1 . 1 . . 2 Weapon 2 | . . . . . . . . 1 . . . . 1 . . . . . . . . Parts Attached 240 | 6 7 4 3 24 28 17 6 12 18 3 3 3 17 15 2 18 9 12 17 11 5 Power 21 | 1 1 . . 2 2 4 . 1 1 . . . 1 4 . 4 . . . . . Engine 9 | 1 1 . . 2 1 2 . . 1 . . . . . . 1 . . . . . Core 6 | . . . . . 1 2 . 1 . . . . 1 . . 1 . . . . . Reactor 6 | . . . . . . . . . . . . . . 4 . 2 . . . . . Propulsion 41 | 2 2 . . 7 11 3 . 4 6 . . . 3 . . 1 . 2 . . . Treads 17 | 2 2 . . 7 5 . . . . . . . . . . . . 1 . . . Leg 17 | . . . . . 5 2 . 2 6 . . . 1 . . . . 1 . . . Wheel 3 | . . . . . 1 . . 2 . . . . . . . . . . . . . Hover 4 | . . . . . . 1 . . . . . . 2 . . 1 . . . . . Flight . | . . . . . . . . . . . . . . . . . . . . . . Utility 121 | 1 2 . 1 6 11 7 5 4 11 3 3 3 12 5 1 10 6 7 14 7 2 Device 55 | . . . . 1 4 1 4 1 6 1 3 . 5 4 . 6 2 4 9 3 1 Storage 11 | 1 1 . . 1 . 1 . . . 1 . 1 1 . . . 3 . 1 . . Processor 18 | . 1 . . . 2 . 1 1 . . . . 3 . . 2 1 2 1 3 1 Hackware 5 | . . . . 1 1 . . . . . . 2 . . . 1 . . . . . Protection 32 | . . . 1 3 4 5 . 2 5 1 . . 3 1 1 1 . 1 3 1 . Artifact . | . . . . . . . . . . . . . . . . . . . . . . Weapon 57 | 2 2 4 2 9 4 3 1 3 . . . . 1 6 1 3 3 3 3 4 3 Energy Gun 10 | . . . . 5 1 . . . . . . . . . 1 . 1 . . 1 1 Energy Cannon 11 | . . . 1 1 1 . . 1 . . . . 1 . . 1 1 1 1 . 2 Ballistic Gun 10 | 2 2 . . . . . . . . . . . . 3 . 1 . . . 2 . Ballistic Cannon 6 | . . 2 . . . . . 1 . . . . . . . . . 1 1 1 . Launcher 11 | . . 2 1 2 . 1 . 1 . . . . . 2 . 1 . 1 . . . Special Weapon . | . . . . . . . . . . . . . . . . . . . . . . Impact Weapon 6 | . . . . . 2 2 . . . . . . . 1 . . . . 1 . . Slashing Weapon 3 | . . . . 1 . . 1 . . . . . . . . . 1 . . . . Piercing Weapon . | . . . . . . . . . . . . . . . . . . . . . . Special Melee Weapon . | . . . . . . . . . . . . . . . . . . . . . . Unidentified Prototypes 43 | . . . . 2 1 3 1 2 . 3 . . 2 2 3 3 6 2 9 4 . Corrupted Parts 4 | . . . . 1 . . 1 . . . . . 2 . . . . . . . . System Corruption 14 | . . . . 1 . . 7 . . . . . 6 . . . . . . . . Parts Lost 43 | . 1 . . 2 1 . . 7 9 1 . . 4 8 . 4 1 . . 2 3 Power 8 | . 1 . . . 1 . . . 2 . . . 1 2 . 1 . . . . . Propulsion 8 | . . . . . . . . 4 2 . . . 2 . . . . . . . . Utility 19 | . . . . 1 . . . 1 5 . . . 1 5 . 2 1 . . 2 1 Weapon 8 | . . . . 1 . . . 2 . 1 . . . 1 . 1 . . . . 2 Highest Loss Streak 4 | . 1 . . 1 1 . . 2 4 1 . . 1 3 . 2 1 . . 2 1 To Critical Strikes 1 | . . . . . . . . 1 . . . . . . . . . . . . . Average Backups 13 | . 5 14 14 14 14 14 11 12 11 12 14 14 13 12 14 13 13 13 13 13 14 Power . | . . 1 1 . . 1 1 . . . . . . . . . . . . . 2 Propulsion . | . . 1 2 . 2 2 . 3 4 . . . . . . . . . . . . Utility 8 | . 1 7 6 9 9 6 7 7 7 12 14 14 13 11 7 7 7 7 7 8 7 Weapon 2 | . 3 4 5 3 2 5 2 . . . . . . 1 4 3 3 3 2 1 2 Tool/Special . | . . . . . . . . . . . . . . . . . . . . . . Unused Backups 76 | . . 5 7 13 6 7 3 . 1 8 3 3 2 1 2 1 . 1 4 . 9 Power 3 | . . . . 1 . 1 . . 1 . . . . . . . . . . . . Propulsion 9 | . . . . 2 3 . . . . 4 . . . . . . . . . . . Utility 34 | . . 2 4 4 2 4 . . . 4 3 2 2 . 1 1 . 1 . . 4 Weapon 23 | . . 3 3 3 1 2 3 . . . . 1 . 1 1 . . . 1 . 4 Tool/Special 7 | . . . . 3 . . . . . . . . . . . . . . 3 . 1 Average Slot Usage (%) 75 | . 91 99 100 95 99 99 77 71 78 57 57 58 62 62 54 63 65 60 57 51 52 Engine 3 | . 9 14 14 9 5 1 3 5 4 . . . . . . 2 . . . . . Core 1 | . . . . . . 5 3 4 2 3 . . 2 2 . . . . . . . Reactor 2 | . . . . . . . . . . 1 5 5 3 7 . 3 9 4 4 4 3 Treads 8 | . 28 28 28 35 27 . . . . . . . 1 1 . . . 1 4 4 1 Leg 5 | . . . . . 1 30 17 7 19 5 5 5 2 . . . 4 3 . . 1 Device 15 | . . . . 8 12 14 13 17 14 22 22 22 19 17 15 20 19 19 19 19 24 Storage 6 | . 14 14 14 9 7 7 7 5 5 5 5 5 5 5 10 4 4 4 4 4 3 Processor 6 | . 10 14 8 . 7 7 9 4 . . . . 4 5 5 4 9 9 11 8 4 Protection 7 | . . . 5 12 16 14 6 4 11 5 5 5 6 4 3 3 4 5 4 3 3 Energy Gun 2 | . . . . 8 2 . 3 9 8 2 . . . . . . . . . . . Energy Cannon 2 | . . . 6 1 1 . . 1 5 1 4 5 4 3 . 2 8 4 3 . 1 Ballistic Gun 1 | . 28 . . . . . . . . 1 5 5 6 7 5 3 . . . . . Ballistic Cannon 2 | . . 26 10 . . . . . . 3 . . . 1 5 4 1 2 4 4 2 Launcher 1 | . . . 10 7 . . . 2 . . . . . . . 1 . 1 . . 1 Impact Weapon 1 | . . . . . 4 11 8 . . . . . . . 3 . . . . 1 . Peak Build Rating 214 | 6 10 11 13 32 52 54 64 89 91 118 123 123 131 139 136 155 163 177 209 210 214 Average Rating 95 | 4 7 10 11 27 44 51 50 76 82 103 120 122 121 125 126 143 150 166 180 187 201 On Entrance 90 | . 6 10 10 13 27 51 52 57 84 90 111 123 123 115 123 131 146 150 176 209 192 Avg Prop Armor Cover (%) 9 | . . . . . 17 . . 9 . . . . 3 . . . . 3 . . . Naked Turns . | . . . . . . . . . . . . . . . . . . . . . . Heaviest Build 172 | 10 29 34 46 61 70 54 44 72 78 77 93 92 93 80 56 118 124 147 162 162 172 Greatest Support 267 | 40 40 40 40 80 94 78 74 50 89 112 122 122 122 125 87 145 181 230 190 257 267 Greatest Overweight (x) 8 | . . . 1 . 5 . 8 6 3 1 1 . 3 . . 1 . . . . . Average Overweight (x) . | . . . . . . . . 1 . . . . . . . . . . . . . Largest Inventory Capacity 17 | 8 15 15 15 15 15 15 15 15 15 15 15 15 15 15 15 15 15 15 15 17 17 Average Capacity 15 | 7 13 15 15 15 15 15 15 15 15 15 15 15 15 15 15 15 15 15 15 15 17 Most Carried 17 | . 15 15 15 15 15 15 15 15 15 15 15 15 15 15 15 15 15 15 15 15 17 Average Carried 13 | . 5 14 14 14 14 14 11 12 11 12 14 14 13 12 14 14 14 14 14 13 14 Final Capacity 17 | 8 15 15 15 15 15 15 15 15 15 15 15 15 15 15 15 15 15 15 15 17 17 Final Carried 15 | . 15 15 15 15 15 15 8 14 15 15 15 14 12 14 15 15 15 13 15 14 11 Scrap Engine Consumption 276 | . . . . . . . 19 23 45 18 3 1 25 29 1 38 13 24 10 15 12 Constructs Created 11 | . . . . . . . 4 1 2 1 . . 1 1 . 1 . . . . . Constructs Modified 101 | . . . . . . . 1 9 14 4 3 . 9 12 . 12 9 13 2 7 6 Class Distribution -------------------- 26% | Construct 12% | Mutant 12% | Gladiator 10% | Scavenger-Mutant 9% | Alien-Construct 7% | Commander-Construct 3% | Skirmisher Dominant Class ---------------- Mutant | -10/Materials Mutant | -10/Mines Scavenger-Mutant | -10/Subcaves Scavenger-Mutant | -8/Materials Gladiator | -7/Factory Gladiator | -7/Storage Gladiator | -7/Recycling Skirmisher | -5/Factory Scavenger-Tank | -5/Extension Commander-Construct | -5/Cetus Commander-Construct | -5/Archives Construct | -5/Hub_04(d) Construct | -4/Factory Construct | -4/Armory Construct | -4/Lab Construct | -3/Research Construct | -3/Testing Construct | -2/Research Alien-Construct | -2/Quarantine Alien-Construct | -2/Section 7 Alien-Gunner | -1/Access Resources | -11 -10 -10 -10 -8 -7 -7 -7 -5 -5 -5 -5 -5 -4 -4 -4 -3 -3 -2 -2 -2 -1 ----------- Run | Yrd Mat Min Sub Mat Fac Sto Rec Fac Ext Cet Arc Hub Fac Arm Lab Res Tes Res Qua Sec Acc Matter Collected 11658 | 199 260 133 238 505 487 621 281 222 406 320 253 368 1095 950 . 756 322 457 854 1356 1575 Remotely 820 | . . . . . . . . . . . . . . . . . . . . . 820 Salvage Created 23851 | . 525 72 146 1465 868 1784 686 1340 953 261 407 392 1468 1244 . 478 1012 946 1144 2796 5864 Parts 1012 | . 32 6 7 87 41 56 18 29 31 8 21 12 52 55 . 22 52 50 35 121 277 Haulers Intercepted 8 | . 1 . . 3 . 1 . 1 . . . . . . . . . . . . 2 Recyclers Shooed 13 | . 1 . . 2 2 2 . 2 2 . . . 1 . . 1 . . . . . Parts Field Recycled . | . . . . . . . . . . . . . . . . . . . . . . Retrieved Matter . | . . . . . . . . . . . . . . . . . . . . . . Parts Self-Destructed 2 | . . . 2 . . . . . . . . . . . . . . . . . . Prevented . | . . . . . . . . . . . . . . . . . . . . . . Parts Restored . | . . . . . . . . . . . . . . . . . . . . . . Kills | -11 -10 -10 -10 -8 -7 -7 -7 -5 -5 -5 -5 -5 -4 -4 -4 -3 -3 -2 -2 -2 -1 ------- Run | Yrd Mat Min Sub Mat Fac Sto Rec Fac Ext Cet Arc Hub Fac Arm Lab Res Tes Res Qua Sec Acc Combat Hostiles Destroyed 357 | . 8 6 5 30 10 37 8 22 15 3 3 6 23 19 . 13 14 12 14 35 74 Melee 30 | . . . . . 8 17 4 . . . . . . 1 . . . . . . . Guns 54 | . 8 . . 8 2 . . 11 5 . 1 . 9 8 . 2 . . . . . Cannons 163 | . . 3 2 . . . . 3 7 2 2 5 6 4 . 2 13 10 9 27 68 AOE 77 | . . 3 3 21 . 11 . 6 1 . . 1 7 3 . 7 1 . 4 5 4 Classes Destroyed 27 | . 6 1 4 5 2 1 1 . 1 . . . . 1 . 1 1 1 1 . 1 Worker 15 | . 1 . . 1 . 1 . 1 . . . 1 2 . . 1 . . . 1 6 Builder 24 | . . . . 1 . . . 1 1 . . . . . . . . 1 . 2 18 Tunneler 2 | . . . . 1 . . . . . . . . . . . 1 . . . . . Hauler 8 | . 1 . . 3 . 1 . 1 . . . . . . . . . . . . 2 Recycler 30 | . 1 . . 4 5 4 3 3 1 . . . 2 . . 1 1 . 1 2 2 Mechanic 6 | . . . . . 1 1 . . . . . 1 1 . . . . . . . 2 Operator 10 | . 1 . . 1 . . . . 1 . 5 . . . . . . 1 . 1 . Watcher 15 | . 1 . . 3 1 . . 1 . 1 . . 1 . . . 1 . 3 2 1 Swarmer 59 | . . 5 . 8 . 2 . 11 . . . . 7 . . 11 . . 4 . 11 Saboteur 2 | . . . . . . . . . . . . . . . . . . . . . 2 Grunt 107 | . 8 1 2 13 . 18 . 4 6 . . 3 4 4 . . 6 2 . 13 23 Brawler 12 | . . . . 1 . 3 . 1 1 . . . 1 . . . . . . 2 3 Duelist 12 | . . . . 1 . 1 . 1 . . . 1 1 2 . . . . . . 5 Protector 2 | . . . . . . 1 . . . . . . . . . . . . . . 1 Researcher 1 | . . . . . . . . . . . . . . . . . 1 . . . . Sentry 45 | . . . 1 6 2 9 5 . 5 . 3 2 3 1 . . . 1 . 3 4 Demolisher 1 | . . . . . . . 1 . . . . . . . . . . . . . . Specialist 9 | . . . . . . . . . . . . . . 4 . . . 2 3 . . Hunter 24 | . . . . 1 . . . 3 2 . . . 4 2 . . . 2 . 2 8 Programmer 66 | . . . . . 8 3 . 2 . . . . 3 6 . 1 8 4 6 10 15 Heavy 4 | . . . . . . . . . . . . . . . . . . 1 . 1 2 Behemoth 1 | . . . . . . . . . 1 . . . . . . . . . . . . Cetus Guard 3 | . . . . . . . . . . 3 . . . . . . . . . . . S7 Guard 2 | . . . . . . . . . . . . . . . . . . . . 2 . Investigator 1 | . . . . . . . . . . . . . . . . . . . . . 1 Executioner 3 | . . . . . . . . . . . . . . . . 1 . . . 2 . Fortress 1 | . . . . . . . . . . . . . . . . . . . 1 . . Artisan 1 | . . . 1 . . . . . . . . . . . . . . . . . . Subdweller 5 | . . . 3 . . . 2 . . . . . . . . . . . . . . Zionite 1 | . . . 1 . . . . . . . . . . . . . . . . . . Best Kill Streak 22 | . 3 3 3 9 3 12 4 6 3 2 3 2 9 4 . 6 4 3 5 8 22 Combat Bots Only 15 | . 2 3 3 7 2 9 3 4 3 1 3 2 8 4 . 4 4 3 4 8 15 Max Kills in Single Turn 5 | . 1 2 3 5 1 3 1 2 1 1 1 2 5 2 . 3 1 1 4 3 3 Gunslinging . | . . . . . . . . . . . . . . . . . . . . . . Exploded 4 | . . 2 1 4 . 2 . 2 1 . . 1 4 2 . 3 1 . 4 3 2 Melee 1 | . . . . . 1 1 1 . . . . . . 1 . . . . . . . Uniques/NPCs Destroyed 1 | . . . . . . . . . . 1 . . . . . . . . . . . A7 (-5/Cetus) Combat | -11 -10 -10 -10 -8 -7 -7 -7 -5 -5 -5 -5 -5 -4 -4 -4 -3 -3 -2 -2 -2 -1 -------- Run | Yrd Mat Min Sub Mat Fac Sto Rec Fac Ext Cet Arc Hub Fac Arm Lab Res Tes Res Qua Sec Acc Hostile Shots Fired 3088 | . 65 15 9 106 154 283 66 134 141 4 4 101 285 462 . 90 78 70 111 354 556 Missed 1035 | . 26 5 5 29 40 114 22 31 43 2 1 32 85 191 . 27 21 21 55 94 191 Deflected 22 | . . . . . . . . . . . . . . . . . . . . . 22 Hits 2053 | . 39 10 4 77 114 169 44 103 98 2 3 69 200 271 . 63 57 49 56 260 365 Melee 38 | . . . . 5 . . . 4 3 . . . 5 9 . . . . . 4 8 Projectile 2015 | . 39 10 4 72 114 169 44 99 95 2 3 69 195 262 . 63 57 49 56 256 357 AOE 8 | . . . 2 . . . 2 . . . . . . 3 . . . . . . 1 Critical Strikes 87 | . 2 . 1 4 5 2 1 4 5 1 . 2 7 15 . 1 9 1 . 11 16 Actively Blocked 2 | . . . . . . . . . 2 . . . . . . . . . . . . Part Disruptions 4 | . . . . . . . . . . . . . . 2 . 1 . . . 1 . Damage Taken 27607 | . 497 78 239 1510 1117 1265 382 1740 2022 79 80 818 3424 3575 . 1473 1039 783 418 3368 3700 Core 2296 | . 113 16 101 106 69 147 115 247 97 . . 55 254 277 . 165 60 74 48 211 141 Absorbed by Shields 11772 | . . . . . 162 527 . . 88 29 30 308 194 1480 . 228 379 702 448 3475 3722 Reduced by Siege Mode 84 | . . . . . . . . . . . . . . . . . . . . 84 . Redirected to Shielding 345 | . . . . 14 10 66 3 . 252 . . . . . . . . . . . . Ignored by Resistances 1460 | . . . . . 66 . . . 18 . . . . . . . . . . 128 1248 Regen/Repaired (Parts) 11468 | . . . . . . 33 10 98 644 126 21 46 895 1090 . 1152 85 677 285 3442 2864 Core Remaining (%) 61 | 100 . . 8 80 . . 52 . . . . 60 . . 53 . 82 . . 53 64 Volleys Fired 1252 | . 71 7 29 79 19 17 19 67 56 32 47 40 77 127 . 24 55 55 63 140 228 Largest 3 | . 2 2 2 2 1 1 2 2 3 2 2 2 3 3 . 2 2 1 2 2 2 Hottest 265 | . 40 60 120 140 75 39 138 166 254 254 223 223 265 187 . 184 184 94 184 184 113 Shots Fired 1650 | . 142 11 39 94 19 15 26 109 139 37 52 75 147 164 . 32 61 53 63 142 230 Gun 739 | . 142 . . 71 19 . 14 83 83 24 45 36 80 129 . 13 . . . . . Cannon 844 | . . 8 34 6 . . 12 21 55 13 7 39 67 31 . 12 61 50 62 138 228 Launcher 67 | . . 3 5 17 . 15 . 5 1 . . . . 4 . 7 . 3 1 4 2 Special . | . . . . . . . . . . . . . . . . . . . . . . Kinetic 986 | . 142 8 32 17 . . . . 31 25 52 36 67 148 . 22 52 48 47 49 210 Thermal 462 | . . . 7 6 19 . 26 104 107 12 . 39 61 . . . 3 . 1 70 7 Explosive 35 | . . 3 . . . 15 . 2 . . . . . 1 . 7 . . 1 4 2 Electromagnetic 167 | . . . . 71 . . . 3 1 . . . 19 15 . 3 6 5 14 19 11 Robot Hit Streak 20 | . 8 2 6 11 9 7 20 16 17 7 8 7 16 15 . 7 7 6 10 12 14 Robot Miss Streak 8 | . 4 3 2 5 7 1 5 5 3 3 2 4 4 4 . 8 2 8 3 4 4 Penetration Max 2 | . . . . . . . . . . 1 1 1 1 2 . . . . . . 2 Secondary Targets 5 | . 2 . . 1 . . . 2 . . . . . . . . . . . . . Max Gunslinging Chain 1 | . 1 . . 1 . . . 1 . . . . . . . . . . . . . Shots Hit Robots 1215 | . 99 4 17 70 68 93 42 87 97 23 34 44 80 97 . 25 37 28 30 96 144 Core Hits 696 | . 38 8 11 74 26 47 16 62 51 11 16 18 42 50 . 19 21 16 18 60 92 Critical Kills 21 | . . . . . . 6 1 . . . 1 . 2 5 . 2 3 . . . 1 Critical Parts Destroyed 60 | . . . . . 1 19 10 . . . . 2 3 13 . 4 6 . . . 2 Critical Strikes 97 | . . . . . 5 29 11 . . . 1 3 5 18 . 6 11 3 2 . 3 Destroy 42 | . . . . . . . . . . . 1 3 5 16 . 5 9 . . . 3 Blast 4 | . . . . . . . . . . . . . . . . . . 3 1 . . Corrupt 1 | . . . . . . . . . . . . . . . . . . . 1 . . Smash 41 | . . . . . 1 26 11 . . . . . . 2 . 1 . . . . . Sever 9 | . . . . . 4 3 . . . . . . . . . . 2 . . . . Melee Attacks 257 | . . . . . 64 107 27 . . . . . . 11 12 13 13 4 2 4 . Kinetic 6 | . . . . . . . . . . . . . . . . . . . 2 4 . Impact 152 | . . . . . 10 79 27 . . . . . . 11 12 13 . . . . . Slashing 99 | . . . . . 54 28 . . . . . . . . . . 13 4 . . . Piercing . | . . . . . . . . . . . . . . . . . . . . . . Sneak Attacks 21 | . . . . . 7 6 3 . . . . . . . . 1 2 1 . 1 . Combat Hostiles 2 | . . . . . . 1 1 . . . . . . . . . . . . . . Follow-up Attacks 24 | . . . . . 7 11 6 . . . . . . . . . . . . . . Damage Inflicted 74044 | . 852 323 719 3951 2392 5797 1473 2665 2672 920 1069 2224 4854 3768 . 2452 2922 2630 3165 9153 20043 Guns 10556 | . 852 . . 1106 431 . 307 1617 1348 453 831 624 1337 1506 . 144 . . . . . Cannons 41084 | . . 103 250 113 . . 252 285 1170 467 238 1347 2222 1040 . 468 2089 2283 2705 7151 18901 Explosions 14330 | . . 220 469 2732 . 2279 . 763 148 . . 253 1213 899 . 1345 398 209 401 1935 1066 Melee 7892 | . . . . . 1961 3518 914 . . . . . . 323 . 492 421 137 59 67 . Ramming 182 | . . . . . . . . . 6 . . . 82 . . 3 14 1 . . 76 Kinetic 37761 | . 852 103 640 1967 . . . . 288 608 1069 624 1120 2165 . 585 2023 2240 2282 2630 18565 Thermal 14526 | . . . 79 878 431 . 559 1922 2378 312 . 1600 2179 96 . . . . 107 3908 77 Explosive 9826 | . . 220 . . . 2279 . 373 . . . . 1137 672 . 1345 398 . 401 1935 1066 Electromagnetic 3983 | . . . . 1106 . . . 370 . . . . 336 512 . 27 66 252 375 680 259 Impact 4883 | . . . . . 356 2798 914 . . . . . . 323 . 492 . . . . . Slashing 2883 | . . . . . 1605 720 . . . . . . . . . . 421 137 . . . Piercing . | . . . . . . . . . . . . . . . . . . . . . . Highest Corruption 23 | . . . . 1 14 15 22 . 11 11 11 . 11 23 23 3 12 6 6 4 . Average Corruption 9 | . . . . 1 8 14 15 . 10 11 8 . 8 11 23 1 6 3 3 3 . Corruption Purged 18 | . . . . . . . . . . . 11 . . 7 . . . . . . . Corruption Blocked . | . . . . . . . . . . . . . . . . . . . . . . Effects 546 | . . . . . 56 62 81 . 72 27 18 . 22 55 19 16 49 12 19 38 . Message Errors 134 | . . . . . 12 12 18 . 15 7 3 . 5 17 7 6 12 4 7 9 . Matter Fused 121 | . . . . . 13 12 24 . 18 5 2 . 7 8 3 2 9 2 6 10 . Heat Flow Errors 55 | . . . . . 11 5 8 . 9 2 . . 2 4 3 1 5 . 2 3 . Energy Discharges 58 | . . . . . 7 8 8 . 6 2 1 . 2 5 2 1 5 3 1 7 . Parts Rejected 9 | . . . . . 1 2 . . . . 1 . 1 3 . . 1 . . . . Parts Fused 14 | . . . . . . 3 3 . 2 3 . . . 1 . 1 . . . 1 . Data Loss (minor) 78 | . . . . . 8 11 13 . 11 4 6 . . 5 3 3 8 1 2 3 . Data Loss (major) 26 | . . . . . 2 3 5 . 4 2 2 . 1 2 1 . 3 . . 1 . Misfires 7 | . . . . . . . . . 1 . . . . . . 1 4 . . 1 . Alerts 18 | . . . . . 2 4 1 . 2 1 1 . 1 1 . 1 1 . . 3 . Misdirections 6 | . . . . . . . . . 2 . . . . 3 . . 1 . . . . Weapon Failures 20 | . . . . . . 2 1 . 2 1 2 . 3 6 . . . 2 1 . . Overload Shots . | . . . . . . . . . . . . . . . . . . . . . . Overflow Damage 8001 | . . . 4 154 335 1113 526 59 . 23 . 53 270 114 . 259 196 297 525 631 3442 Projectiles 5256 | . . . . . . . 19 . . 23 . 53 270 72 . 51 141 205 516 623 3283 Explosions 583 | . . . 4 154 . 61 . 59 . . . . . 10 . 85 49 . 9 8 144 Melee 2162 | . . . . . 335 1052 507 . . . . . . 32 . 123 6 92 . . 15 Knockbacks 127 | . . 1 2 . 2 3 3 . . . . . 2 6 . 4 11 12 6 9 66 Impact 14 | . . . . . 2 3 3 . . . . . 2 2 . 1 . . . . 1 Kinetic 101 | . . 1 2 . . . . . . . . . . 4 . 3 11 10 6 9 55 Secondary 12 | . . . . . . . . . . . . . . . . . . 2 . . 10 Self-Inflicted Damage 1365 | . . . 73 334 . 35 . . 69 . . 48 158 152 . 165 128 . . 71 132 Shots 36 | . . . 2 9 . 2 . . 3 . . 1 2 8 . 2 2 . . 3 2 Rammed 11 | . . . . . . . . . . . . . 10 . . . . . . . 1 Targets Rammed 20 | . . . . . . . . . 1 . . . 10 . . 1 2 1 . . 5 Kicked 9 | . . . . . . . . . 1 . . . . . . 1 2 1 . . 4 Crushed . | . . . . . . . . . . . . . . . . . . . . . . Highest Temperature 441 | . 29 12 24 129 239 252 372 63 411 226 6 332 441 258 154 243 319 366 369 388 253 Average Temperature 86 | . 7 6 7 27 66 83 116 18 105 69 6 69 130 89 70 92 114 76 104 101 50 Received Heat Transfer 3693 | . 312 . 15 522 80 415 66 120 402 . 6 189 193 366 . 29 149 32 . 480 317 Thermoelectric Energy+ 133 | . . . . . . . . . . . . . . . . . . . . 105 28 Effects 20 | . . . . . . 1 1 . 2 . . . 6 . . 1 . . 5 3 1 Shutdowns 2 | . . . . . . . . . 1 . . . 1 . . . . . . . . Energy Bleed 4 | . . . . . . 1 . . . . . . 2 . . . . . . . 1 Interference 12 | . . . . . . . . . 1 . . . 3 . . 1 . . 4 3 . Matter Decay 1 | . . . . . . . . . . . . . . . . . . . 1 . . Short Circuit 1 | . . . . . . . 1 . . . . . . . . . . . . . . Siege Activations 3 | . . . . . . . . . . . . . . . . . . . . 3 . Total Turns 52 | . . . . . . . . . . . . . . . . . . . . 52 . Longest Duration 20 | . . . . . . . . . . . . . . . . . . . . 20 . Martial Activations . | . . . . . . . . . . . . . . . . . . . . . . Shielding Activations 2 | . . . . . . . . . . . . . . . . . . . . . 2 Total Turns 85 | . . . . . . . . . . . . . . . . . . . . . 85 Longest Duration 49 | . . . . . . . . . . . . . . . . . . . . . 49 Robots Disrupted 2 | . . . . . . . . . 1 . . . . 1 . . . . . . . Combat Hostiles 2 | . . . . . . . . . 1 . . . . 1 . . . . . . . Robots Corrupted 33 | . . . . 1 1 10 5 1 . . . . 1 3 . 2 . 2 . 1 6 Combat Hostiles 25 | . . . . 1 . 9 4 . . . . . 1 3 . 2 . 2 . 1 2 Parts Fried 51 | . . . . 5 2 12 4 2 . 1 . . 2 2 . 1 . 4 4 5 7 Impact Corruptions 68 | . . . . . 6 30 13 . . . . . . 2 . 8 . 1 . . 8 Robots Melted 7 | . . . . . . . . 4 2 1 . . . . . . . . . . . Combat Hostiles 5 | . . . . . . . . 2 2 1 . . . . . . . . . . . Parts Melted 45 | . . . 1 2 1 1 . 22 7 2 . . . 4 . . . 1 . 4 . Heat Transferred 13778 | . . . 111 748 310 . 700 5632 3850 425 . 150 50 100 . . . . 37 1628 37 Parts Sabotaged 8 | . . . . . . . . . . . . . . 8 . . . . . . . Parts Stolen . | . . . . . . . . . . . . . . . . . . . . . . Parts Stripped 34 | . . . . . . . . . . . . . . . . . . . 18 16 . Power Chain Reactions 13 | . . . . 5 . . . 2 2 . . 2 1 1 . . . . . . . Alert | -11 -10 -10 -10 -8 -7 -7 -7 -5 -5 -5 -5 -5 -4 -4 -4 -3 -3 -2 -2 -2 -1 ------- Run | Yrd Mat Min Sub Mat Fac Sto Rec Fac Ext Cet Arc Hub Fac Arm Lab Res Tes Res Qua Sec Acc Maximum Alert Level 5 | . . . . 3 1 3 1 1 . . 1 3 3 3 . 1 1 1 1 3 5 Low Security (%) 55 | 100 100 100 . 21 87 30 57 70 100 100 97 9 2 22 . 47 68 85 65 21 . Level 1 27 | . . . . 68 12 38 42 29 . . 2 24 39 59 . 52 31 14 34 27 . Level 2 7 | . . . . 6 . 11 . . . . . 62 28 16 . . . . . 14 29 Level 3 6 | . . . . 3 . 18 . . . . . 4 29 . . . . . . 36 10 Level 4 1 | . . . . . . . . . . . . . . . . . . . . . 24 Level 5 . | . . . . . . . . . . . . . . . . . . . . . 7 High Security 1 | . . . . . . . . . . . . . . . . . . . . . 27 Max Security . | . . . . . . . . . . . . . . . . . . . . . . Peak Influence 2907 | . 78 98 . 746 335 809 312 375 159 166 204 730 797 700 . 376 349 277 302 860 2907 Initial 504 | . . 7 . 10 335 48 312 330 125 68 22 . 356 380 . . 74 167 155 141 504 Average 268 | . 27 21 . 268 83 357 178 173 59 88 79 446 519 341 . 202 124 164 162 497 1391 Influence Increases 16212 | . 229 243 40 1268 350 1550 401 970 764 388 289 1130 999 1116 . 634 682 496 549 1331 2783 Destroy 0b10 Robot/C 7840 | . 160 160 40 600 200 840 200 480 460 160 80 360 460 380 . 260 300 240 280 700 1480 Destroy 0b10 Robot/NC 615 | . 25 . . 70 35 45 35 35 25 10 25 25 30 . . 15 10 10 20 40 160 Destroy Leader 1478 | . 44 30 . 142 102 222 . 64 50 . . 64 92 80 . 50 52 60 36 144 246 Allied During Kill 717 | . . 17 . . . 118 10 8 108 149 94 198 . 15 . . . . . . . Successful Hack 240 | . . 12 . 12 10 15 14 7 28 . . 18 27 52 . . . 27 . 18 . Select Force Hacks 170 | . . . . . . . 120 . . . . 50 . . . . . . . . . Disable Machine 1320 | . . . . 195 . 75 15 . 15 15 60 75 165 105 . 30 150 60 105 135 120 Anti-Garrison Action 150 | . . . . . . . . . . . . 150 . . . . . . . . . Destroy Structure 2272 | . . 24 . 249 3 115 7 46 48 24 30 130 180 94 . 204 140 54 108 189 627 Advance Influence 300 | . . . . . . . . 300 . . . . . . . . . . . . . Partial Spotted 105 | . . . . . . 15 . . . . . 15 15 . . . . 15 . 30 15 Lose Combat Pursuer 1005 | . . . . . . 105 . 30 30 30 . 45 30 390 . 75 30 30 . 75 135 Influence Decreases 13305 | . 208 264 20 551 979 856 1131 786 896 456 345 402 950 1193 700 502 516 517 574 741 718 Entered New Map 3468 | . . 14 . 10 402 60 490 42 131 56 34 . 372 397 700 . 58 131 122 111 338 Time Decay 8427 | . 198 250 20 521 567 556 601 534 535 310 311 282 538 486 . 472 448 386 452 610 350 Search Patrol Dispatched 100 | . . . . . . . . 100 . . . . . . . . . . . . . Lost Part 405 | . 10 . . 20 10 . . 70 75 10 . . 40 80 . 30 10 . . 20 30 Lost Ally 755 | . . . . . . 240 40 40 155 80 . 120 . 80 . . . . . . . Purge Threat 150 | . . . . . . . . . . . . . . 150 . . . . . . . Squads Dispatched 88 | . 1 . . 3 6 9 . 4 1 . . 7 10 7 . 7 4 4 3 8 14 Investigation 5 | . . . . . . 2 . . . . . 1 . 1 . 1 . . . . . Extermination 33 | . . . . . 6 3 . 2 . . . 1 3 4 . . 4 2 3 3 2 Reinforcement 30 | . 1 . . 3 . 2 . 2 1 . . 2 3 2 . 6 . 2 . 4 2 Assault 19 | . . . . . . 2 . . . . . 2 4 . . . . . . 1 10 Garrison 1 | . . . . . . . . . . . . 1 . . . . . . . . . Intercept . | . . . . . . . . . . . . . . . . . . . . . . Searches Triggered 1 | . . . . . . . . 1 . . . . . . . . . . . . . Unchained Authorized 1 | . . . . . . . . . . . . 1 . . . . . . . . . Construction Impeded 1 | . . . . . . 1 . . . . . . . . . . . . . . . Haulers Reinforced 3 | . . . . . . . . 1 . . . . . . . 1 . . . . 1 Active Scanning Responses . | . . . . . . . . . . . . . . . . . . . . . . Cargo Convoy Interrupts . | . . . . . . . . . . . . . . . . . . . . . . Stealth | -11 -10 -10 -10 -8 -7 -7 -7 -5 -5 -5 -5 -5 -4 -4 -4 -3 -3 -2 -2 -2 -1 --------- Run | Yrd Mat Min Sub Mat Fac Sto Rec Fac Ext Cet Arc Hub Fac Arm Lab Res Tes Res Qua Sec Acc Distress Signals 25 | . . . . 3 2 . 2 1 2 2 . 2 2 3 . 5 . . . 1 . Communications Jammed 214 | . . . . . . . . . . . . . 5 64 . . 10 10 5 12 108 Distress Signals 203 | . . . . . . . . . . . . . 5 64 . . 10 6 5 12 101 Times Spotted 609 | . 13 10 10 36 22 48 8 30 25 12 26 30 36 57 . 31 21 19 16 56 103 Peak Tracking Total 19 | . 3 3 2 5 3 9 3 6 4 5 1 7 7 19 . 5 4 4 4 8 10 Tactical Retreats 41 | . . . . . . 6 . 1 1 1 . 2 2 12 . 4 2 1 . 3 6 Traps | -11 -10 -10 -10 -8 -7 -7 -7 -5 -5 -5 -5 -5 -4 -4 -4 -3 -3 -2 -2 -2 -1 ------- Run | Yrd Mat Min Sub Mat Fac Sto Rec Fac Ext Cet Arc Hub Fac Arm Lab Res Tes Res Qua Sec Acc Traps Triggered 15 | . . . . . . 2 . 1 2 . . 1 2 1 . 1 1 . 2 2 . Indirectly 1 | . . . . . . . . . . . . . . 1 . . . . . . . Trap Hack Attempts . | . . . . . . . . . . . . . . . . . . . . . . Triggered . | . . . . . . . . . . . . . . . . . . . . . . Disarmed . | . . . . . . . . . . . . . . . . . . . . . . Reprogrammed . | . . . . . . . . . . . . . . . . . . . . . . Reused . | . . . . . . . . . . . . . . . . . . . . . . Traps Extracted . | . . . . . . . . . . . . . . . . . . . . . . Installed . | . . . . . . . . . . . . . . . . . . . . . . Triggered . | . . . . . . . . . . . . . . . . . . . . . . Machines | -11 -10 -10 -10 -8 -7 -7 -7 -5 -5 -5 -5 -5 -4 -4 -4 -3 -3 -2 -2 -2 -1 ---------- Run | Yrd Mat Min Sub Mat Fac Sto Rec Fac Ext Cet Arc Hub Fac Arm Lab Res Tes Res Qua Sec Acc Machines Disabled 94 | . . . . 13 . 5 1 . 1 1 4 6 12 7 4 2 10 4 7 9 8 Max in Single Turn 6 | . . . . 6 . 1 . . 1 1 1 1 3 1 1 1 3 1 1 1 1 Garrison Access 2 | . . . . . . . . . . . . 1 . . . . . . . 1 . Network Hub 2 | . . . . . . . . . . . . 2 . . . . . . . . . Machines Repaired . | . . . . . . . . . . . . . . . . . . . . . . Machines Dismantled . | . . . . . . . . . . . . . . . . . . . . . . Machines Sabotaged 1 | . . . . . . . . . . . . 1 . . . . . . . . . Overloaded Fab Kills . | . . . . . . . . . . . . . . . . . . . . . . Hacking | -11 -10 -10 -10 -8 -7 -7 -7 -5 -5 -5 -5 -5 -4 -4 -4 -3 -3 -2 -2 -2 -1 --------- Run | Yrd Mat Min Sub Mat Fac Sto Rec Fac Ext Cet Arc Hub Fac Arm Lab Res Tes Res Qua Sec Acc Machines Accessed 76 | . 1 1 . 2 7 8 11 3 10 1 . 3 2 7 . 3 6 2 2 7 . Terminals 58 | . 1 1 . 2 6 7 5 2 10 1 . 2 1 6 . 1 4 2 1 6 . Fabricators 1 | . . . . . . . . . . . . . . 1 . . . . . . . Repair Stations 1 | . . . . . . 1 . . . . . . . . . . . . . . . Recycling Units 5 | . . . . . . . 5 . . . . . . . . . . . . . . Scanalyzers 4 | . . . . . . . . . . . . . . . . 1 2 . 1 . . Garrison Access 6 | . . . . . 1 . . 1 . . . 1 1 . . 1 . . . 1 . Total Hacks 174 | . 2 3 . 5 10 19 21 5 17 3 . 4 6 33 . 4 16 8 4 14 . Successful 53 | . . 2 . 2 3 6 8 2 5 . . 3 1 10 . 1 1 1 3 5 . Failed 120 | . 2 1 . 3 7 13 13 3 12 3 . 1 5 23 . 2 15 7 1 9 . Catastrophic 37 | . . . . . 2 2 3 1 5 . . 1 2 9 . 2 3 2 1 4 . Database Lockouts 1 | . . . . . . . . . . . . . . . . 1 . . . . . Manual 45 | . . 3 . 2 1 2 19 . . 1 . 1 . 9 . . . 3 . 4 . Terminals 130 | . 2 3 . 5 9 16 10 2 17 3 . 3 4 27 . 1 9 8 1 10 . Fabricators 6 | . . . . . . . . . . . . . . 6 . . . . . . . Repair Stations 3 | . . . . . . 3 . . . . . . . . . . . . . . . Recycling Units 9 | . . . . . . . 9 . . . . . . . . . . . . . . Scanalyzers 12 | . . . . . . . . . . . . . . . . 2 7 . 3 . . Garrison Access 12 | . . . . . 1 . . 3 . . . 1 2 . . 1 . . . 4 . Terminal Hacks 38 | . . 2 . 2 3 4 2 2 5 . . 2 1 9 . . 1 1 . 4 . Record 2 | . . . . . . 2 . . . . . . . . . . . . . . . Robot Analysis 3 | . . 2 . 1 . . . . . . . . . . . . . . . . . Open Door 10 | . . . . . . 2 . 1 3 . . . . 1 . . . . . 3 . Level Access Points 1 | . . . . . . . . . . . . 1 . . . . . . . . . Branch Access Points 4 | . . . . . 1 . . 1 . . . . 1 . . . . 1 . . . Emergency Access Points 3 | . . . . . . . . . . . . 1 . 2 . . . . . . . Terminal Index 1 | . . . . . . . . . . . . . . 1 . . . . . . . Unreport Threat 1 | . . . . . . . . . . . . . . 1 . . . . . . . Locate Traps 4 | . . . . . 1 . . . . . . . . 2 . . 1 . . . . Maintenance Status 1 | . . . . . 1 . . . . . . . . . . . . . . . . Patrol Status 1 | . . . . . . . . . 1 . . . . . . . . . . . . Hauler Manifests 1 | . . . . 1 . . . . . . . . . . . . . . . . . Zone Layout 4 | . . . . . . . . . 1 . . . . 2 . . . . . 1 . Release Object 2 | . . . . . . . 2 . . . . . . . . . . . . . . Fabricator Hacks 1 | . . . . . . . . . . . . . . 1 . . . . . . . Build 1 | . . . . . . . . . . . . . . 1 . . . . . . . Repair Station Hacks 2 | . . . . . . 2 . . . . . . . . . . . . . . . Scan Component 1 | . . . . . . 1 . . . . . . . . . . . . . . . Repair 1 | . . . . . . 1 . . . . . . . . . . . . . . . Recycling Unit Hacks 1 | . . . . . . . 1 . . . . . . . . . . . . . . Retrieve Components 1 | . . . . . . . 1 . . . . . . . . . . . . . . Scanalyzer 4 | . . . . . . . . . . . . . . . . 1 . . 3 . . Insert Component 2 | . . . . . . . . . . . . . . . . . . . 2 . . Retrieve Study 2 | . . . . . . . . . . . . . . . . 1 . . 1 . . Garrison Access Hacks 1 | . . . . . . . . . . . . . . . . . . . . 1 . Seal Access 1 | . . . . . . . . . . . . . . . . . . . . 1 . Unauthorized Hacks 6 | . . . . . . . 5 . . . . 1 . . . . . . . . . Terminals 2 | . . . . . . . 1 . . . . 1 . . . . . . . . . Skim 1 | . . . . . . . 1 . . . . . . . . . . . . . . Sabotage 1 | . . . . . . . . . . . . 1 . . . . . . . . . Fabricators . | . . . . . . . . . . . . . . . . . . . . . . Repair Stations . | . . . . . . . . . . . . . . . . . . . . . . Recycling Units 4 | . . . . . . . 4 . . . . . . . . . . . . . . Tunnel 4 | . . . . . . . 4 . . . . . . . . . . . . . . Scanalyzers . | . . . . . . . . . . . . . . . . . . . . . . Garrison Access . | . . . . . . . . . . . . . . . . . . . . . . Data Cores Recovered 2 | . . . . . . . . . 1 . . . . . . . . . . 1 . Used . | . . . . . . . . . . . . . . . . . . . . . . Hacking Detections 62 | . 1 1 . 2 7 7 7 2 9 1 . 2 2 6 . 2 6 2 2 3 . Full Trace Events 4 | . . . . . . 1 2 . . . . . . 1 . . . . . . . Feedback Events 1 | . . . . . . 1 . . . . . . . . . . . . . . . Corruption 1 | . . . . . . 1 . . . . . . . . . . . . . . . Feedback Blocked . | . . . . . . . . . . . . . . . . . . . . . . Robot Schematics Acquired 1 | . . . . . . . . . . . . . . . . . 1 . . . . Robots Built 2 | . . . . . . . . . . . . . . 2 . . . . . . . Authchips . | . . . . . . . . . . . . . . . . . . . . . . Time 76 | . . . . . . . . . . . . . . 76 . . . . . . . Total Robot Build Rating 10 | . . . . . . . . . . . . . . 10 . . . . . . . Part Schematics Acquired 4 | . . . . . . . . . . . . . . . . . 4 . . . . Parts Built . | . . . . . . . . . . . . . . . . . . . . . . Authchips . | . . . . . . . . . . . . . . . . . . . . . . Time . | . . . . . . . . . . . . . . . . . . . . . . Total Part Build Rating . | . . . . . . . . . . . . . . . . . . . . . . Part Studies Acquired 2 | . . . . . . . . . . . . . . . . 1 . . 1 . . Parts Repaired 1 | . . . . . . 1 . . . . . . . . . . . . . . . Time 44 | . . . . . . 44 . . . . . . . . . . . . . . . Parts Recycled . | . . . . . . . . . . . . . . . . . . . . . . Recycled Matter . | . . . . . . . . . . . . . . . . . . . . . . Retrieved Matter . | . . . . . . . . . . . . . . . . . . . . . . Retrieved Components 4 | . . . . . . . 4 . . . . . . . . . . . . . . Parts Scanalyzed . | . . . . . . . . . . . . . . . . . . . . . . Part Schematics Acquired . | . . . . . . . . . . . . . . . . . . . . . . Parts Damaged . | . . . . . . . . . . . . . . . . . . . . . . Bothacking | -11 -10 -10 -10 -8 -7 -7 -7 -5 -5 -5 -5 -5 -4 -4 -4 -3 -3 -2 -2 -2 -1 ------------ Run | Yrd Mat Min Sub Mat Fac Sto Rec Fac Ext Cet Arc Hub Fac Arm Lab Res Tes Res Qua Sec Acc Used RIF Installer . | . . . . . . . . . . . . . . . . . . . . . . Robots Hacked . | . . . . . . . . . . . . . . . . . . . . . . Non-combat . | . . . . . . . . . . . . . . . . . . . . . . Combat . | . . . . . . . . . . . . . . . . . . . . . . Robot Hacks Applied . | . . . . . . . . . . . . . . . . . . . . . . Relay Couplers Released 3 | . . . . . . . . . . . . 3 . . . . . . . . . Machine Destruction 3 | . . . . . . . . . . . . 3 . . . . . . . . . Fabnet Peak Effective % . | . . . . . . . . . . . . . . . . . . . . . . Robots Rewired 29 | . . . . . . . 9 . 15 . . . . 5 . . . . . . . Allies Hacked 2 | . . . . . . . 1 . . . . . . 1 . . . . . . . Hacks Repelled . | . . . . . . . . . . . . . . . . . . . . . . Allies | -11 -10 -10 -10 -8 -7 -7 -7 -5 -5 -5 -5 -5 -4 -4 -4 -3 -3 -2 -2 -2 -1 -------- Run | Yrd Mat Min Sub Mat Fac Sto Rec Fac Ext Cet Arc Hub Fac Arm Lab Res Tes Res Qua Sec Acc Total Allies 60 | . . 6 . . . 12 9 . 21 5 . . . 7 . . . . . . . Largest Group 11 | . . 6 5 . . 10 9 3 11 11 7 7 . 4 . . . . . . . Highest-Rated Group 799 | . . 124 93 . . 173 168 49 430 799 482 482 . 256 . . . . . . . Highest-Rated Ally 159 | . . 31 31 . . 31 34 32 159 159 96 96 . 64 . . . . . . . Total Orders 15 | . . 2 . . . . 3 . . 4 6 . . . . . . . . . . STAY 9 | . . 1 . . . . 2 . . 2 4 . . . . . . . . . . FOLLOW 6 | . . 1 . . . . 1 . . 2 2 . . . . . . . . . . Ally Attacks 384 | . . 9 38 . . 64 10 6 48 82 22 101 . 4 . . . . . . . Total Damage 8579 | . . 106 420 . . 863 358 214 1213 1761 806 2701 . 137 . . . . . . . Kills 56 | . . 2 4 . . 7 4 2 11 9 1 16 . . . . . . . . . Allies Corrupted 1 | . . . . . . . . . . . . . . 1 . . . . . . . Allies Melted 1 | . . . . . . . . . 1 . . . . . . . . . . . . Intel | -11 -10 -10 -10 -8 -7 -7 -7 -5 -5 -5 -5 -5 -4 -4 -4 -3 -3 -2 -2 -2 -1 ------- Run | Yrd Mat Min Sub Mat Fac Sto Rec Fac Ext Cet Arc Hub Fac Arm Lab Res Tes Res Qua Sec Acc Active Infowar (turns) 15018 | . . . . . 789 20 1925 1510 288 . . . 1260 1244 . 1320 1558 907 1134 1961 1102 Optics 4 | . . . . . . . . . . . . . 4 . . . . . . . . Sensors 10869 | . . . . . 789 20 1925 1510 288 . . . 870 197 . 1119 1558 745 821 1027 . Jamming 10086 | . . . . . . . . . . . . . 863 1244 . 1320 1558 907 1131 1961 1102 Robot Analysis Total 3 | . . 2 . 1 . . . . . . . . . . . . . . . . . Derelict Logs Recovered 2 | . . 1 1 . . . . . . . . . . . . . . . . . . Drone Launches . | . . . . . . . . . . . . . . . . . . . . . . Drone Recoveries . | . . . . . . . . . . . . . . . . . . . . . . Exploration | -11 -10 -10 -10 -8 -7 -7 -7 -5 -5 -5 -5 -5 -4 -4 -4 -3 -3 -2 -2 -2 -1 ------------- Run | Yrd Mat Min Sub Mat Fac Sto Rec Fac Ext Cet Arc Hub Fac Arm Lab Res Tes Res Qua Sec Acc Turns Passed 27945 | 62 609 1144 1414 1788 2433 1632 1925 1510 2074 690 759 676 1525 1274 402 1344 1558 907 1134 1983 1102 Spaces Moved 15099 | 37 249 606 676 892 1305 781 917 575 850 314 294 433 862 779 189 979 1237 613 780 1268 463 Core 6 | 5 . . . . . . 1 . . . . . . . . . . . . . . Treads 6385 | 32 249 606 676 892 1091 . . . . . . . 233 162 . 99 . 108 780 1268 189 Legs 6812 | . . . . . 82 781 916 440 850 314 294 433 437 92 . 157 1237 505 . . 274 Wheels 267 | . . . . . 132 . . 135 . . . . . . . . . . . . . Hover 1629 | . . . . . . . . . . . . . 192 525 189 723 . . . . . Flight . | . . . . . . . . . . . . . . . . . . . . . . Fastest Speed 50 | 50 160 160 160 160 125 122 122 115 120 115 115 115 70 83 84 58 85 74 91 91 124 Average Speed 127 | 145 160 160 193 160 146 125 154 188 140 139 119 115 117 92 84 98 85 82 91 107 146 Slowest Speed 519 | 160 160 160 240 160 225 127 450 519 330 187 162 115 266 133 84 131 85 91 91 162 162 Overloaded Moves . | . . . . . . . . . . . . . . . . . . . . . . Propulsion Burnouts . | . . . . . . . . . . . . . . . . . . . . . . Robots Hopped . | . . . . . . . . . . . . . . . . . . . . . . Potential Cave-ins 7 | . . . . . . . . . . . . . . . . . 3 . . 4 . Cave-ins Triggered . | . . . . . . . . . . . . . . . . . . . . . . Teleports 5 | . . . . . . . . . . . . . . . . . . . . 3 2 Exploration Rate (%) 49 | 4 40 94 30 46 26 83 96 12 72 56 82 34 19 42 93 23 89 16 67 59 16 Regions Visited 21 Branch Regions 13 Pre-discovered Areas 5 | . . . 1 . . . 4 . . . . . . . . . . . . . . Known Exits Taken 12 | . . . . 1 1 . . 1 . . . 1 1 1 1 1 1 1 1 1 . Unknown Exits Taken 9 | 1 1 1 1 . . 1 1 . 1 1 1 . . . . . . . . . . Scrap Searched 6 | . . 1 5 . . . . . . . . . . . . . . . . . . Spaces Dug 161 | . . . . 10 3 3 1 3 1 . . 3 7 36 . 37 15 13 8 11 10 Terrain Destroyed 1376 | . . 37 78 294 3 133 1 30 19 15 19 37 98 67 . 115 86 21 42 77 204 Melee 12 | . . . . . 3 3 1 . . . . . . . . . 3 2 . . . Projectile 398 | . . . 1 1 . . . 4 13 15 19 21 49 36 . 1 54 19 20 27 118 AOE 963 | . . 37 77 293 . 130 . 26 6 . . 16 49 28 . 114 29 . 22 50 86 Terrain Rammed . | . . . . . . . . . . . . . . . . . . . . . . Walls Destroyed . | . . . . . . . . . . . . . . . . . . . . . . Machines Disabled . | . . . . . . . . . . . . . . . . . . . . . . Actions | -11 -10 -10 -10 -8 -7 -7 -7 -5 -5 -5 -5 -5 -4 -4 -4 -3 -3 -2 -2 -2 -1 --------- Run | Yrd Mat Min Sub Mat Fac Sto Rec Fac Ext Cet Arc Hub Fac Arm Lab Res Tes Res Qua Sec Acc Total 22071 | 42 348 771 750 1171 1747 1292 1362 884 1597 530 649 532 1220 1134 411 1300 1659 964 1165 1783 760 Wait 4140 | . 2 138 21 111 273 332 311 204 423 162 291 43 218 110 189 236 320 238 227 271 20 Move 15078 | 36 248 605 675 891 1304 780 916 574 849 313 293 432 861 778 188 979 1236 612 779 1267 462 Hop . | . . . . . . . . . . . . . . . . . . . . . . Pick Up 206 | . 15 7 10 27 24 16 . 10 8 7 5 4 9 11 7 5 2 4 16 10 9 Fast Attach 190 | 6 2 1 1 4 10 15 4 10 11 4 4 . 10 15 3 16 12 10 22 25 5 Attach 109 | . 1 1 1 12 14 5 1 8 7 . . 2 7 11 2 4 1 5 4 14 9 Detach 42 | . 1 . . 1 2 . . 5 . 1 . . 1 3 2 3 1 3 4 8 7 Swap 122 | . 4 4 1 13 12 8 1 1 3 . 1 3 10 3 . 3 4 16 12 22 1 Drop 325 | . 4 8 12 33 34 28 19 5 12 11 8 6 17 7 8 17 13 16 36 22 9 Fire 1252 | . 71 7 29 79 19 17 19 67 56 32 47 40 77 127 . 24 55 55 63 140 228 Melee 225 | . . . . . 55 91 20 . . . . . . 11 12 13 13 4 2 4 . Ram 4 | . . . . . . . . . . . . . 4 . . . . . . . . Kick 8 | . . . . . . . . . 1 . . . . . . . 2 1 . . 4 Crush 7 | . . . . . . . . . . . . . 6 . . . . . . . 1 Escape Stasis 7 | . . . . . . . . . . . . 2 . . . . . . . . 5 Rewire 356 | . . . . . . . 71 . 227 . . . . 58 . . . . . . . Trap . | . . . . . . . . . . . . . . . . . . . . . . Miscellaneous . | . . . . . . . . . . . . . . . . . . . . . . Route ------- -11/Scrapyard -10/Materials (discovered 3 exits: [*Mat] / *Min x2) -10/Mines (discovered 3 exits: [*Mat x2] / [*Sub]) -10/Subcaves (discovered 2 exits: *Mat x2) -8/Materials -7/Factory (discovered 5 exits: *Fac / *Sto x2 / Low x2) -7/Storage (discovered 2 exits: *Fac / *Rec) -7/Recycling -5/Factory (discovered 5 exits: *Fac / Upp x2 / *Ext x2) -5/Extension (discovered 2 exits: *Fac / *Cet) -5/Cetus (discovered 2 exits: *Fac / *Arc) -5/Archives (discovered 3 exits: *Fac / *Hub x2) -5/Hub_04(d) (discovered 4 exits: *Fac x4) -4/Factory (discovered 4 exits: *Res / Upp x2 / *Arm) -4/Armory -4/Lab -3/Research -3/Testing -2/Research (discovered 2 exits: *Qua x2) -2/Quarantine (discovered 3 exits: *Acc / *Sec / [*Frg]) -2/Section 7 -1/Access To Fleet Rendezvous History --------- Turn | Location | Event 7 | -11/Scrapyard | Discovered new exit (range 15) 63 | -11/Scrapyard | Entered Materials 303 | -10/Materials | Build established: Mutant 462 | -10/Materials | Discovered new exit (range 4) 536 | -10/Materials | Discovered new exit (range 16) 550 | -10/Materials | Discovered new exit (range 16) 672 | -10/Materials | Entered Mines 844 | -10/Mines | Core integrity fell below 50% 867 | -10/Mines | Discovered new exit (range 16) 945 | -10/Mines | Assisted by bots powering up and referring to "LRC-V3" 961 | -10/Mines | Discovered new exit (range 15) 1005 | -10/Mines | Joined a pair of Derelicts in attacking an 0b10 outpost 1086 | -10/Mines | Learned 4 Materials zone layouts 1122 | -10/Mines | Discovered new exit (range 5) 1239 | -10/Mines | Received a Mining Laser from a helpful Derelict 1280 | -10/Mines | A weapon hastily lodged in a ceiling crevice suddenly fell to the ground 1816 | -10/Mines | Entered Subcaves 1816 | -10/Subcaves | Accompanied by 5 allies 1821 | -10/Subcaves | Led the pair of lost Derelicts to an unsafe place 1901 | -10/Subcaves | Learned location of Zion (-6) 2277 | -10/Subcaves | Discovered new exit (range 10) 2827 | -10/Subcaves | Build established: Scavenger-Mutant 3080 | -10/Subcaves | Discovered new exit (range 15) 3136 | -10/Subcaves | Core integrity fell below 20% 3230 | -10/Subcaves | Entered Materials 3230 | -8/Materials | Evolved 4 slots: Propulsion x2, Utility x2 3231 | -8/Materials | Identified exit to Factory 4876 | -8/Materials | Destroyed 7 combat bots 5018 | -8/Materials | Entered Factory 5018 | -7/Factory | Evolved 2 slots: Utility x2 5739 | -7/Factory | Build established: Mutant 6187 | -7/Factory | Discovered new exit (range 15) 6200 | -7/Factory | Build established: Gladiator 6207 | -7/Factory | Identified exit to Factory 6932 | -7/Factory | System corruption reached 10% 7141 | -7/Factory | Identified exit to Storage 7141 | -7/Factory | Identified exit to Lower Caves 7451 | -7/Factory | Entered Storage 7523 | -7/Storage | Assisted by bots powering up and referring to "LRC-V3" 7729 | -7/Storage | Lost 4 allies 7796 | -7/Storage | Lost 6 allies 8191 | -7/Storage | Repaired Imp. Shield Generator 8594 | -7/Storage | Met a pair of Derelict thieves 8724 | -7/Storage | Destroyed 9 combat bots 8869 | -7/Storage | Discovered exit to Factory (range 5) 9023 | -7/Storage | Used back door to open Recycling access 9023 | -7/Storage | Discovered new exit (range 5) 9083 | -7/Storage | Entered Recycling 9561 | -7/Recycling | Discovered new exit (range 9) 9917 | -7/Recycling | Entered Scraplab 9923 | -7/Recycling | Found Prototype Device 9923 | -7/Recycling | Identified Scrap Engine 10231 | -7/Recycling | Build established: Commander-Mutant 10379 | -7/Recycling | P-60 Hacker assimilated allied Gladiator 4a 10386 | -7/Recycling | P-60 Hacker assimilated allied Grenadier 4a 10418 | -7/Recycling | Lost 3 allies 10795 | -7/Recycling | Build established: Construct 11008 | -7/Recycling | Entered Factory 11008 | -5/Factory | Accompanied by 3 allies 11008 | -5/Factory | Evolved 4 slots: Power x1, Propulsion x1, Utility x1, Weapon x1 11308 | -5/Factory | Search patrols dispatched 11428 | -5/Factory | Lost 3 allies 11465 | -5/Factory | Build established: Skirmisher 11699 | -5/Factory | Discovered new exit (range 5) 11714 | -5/Factory | Identified exit to Factory 12463 | -5/Factory | Identified exit to Upper Caves 12463 | -5/Factory | Identified exit to Extension 12518 | -5/Factory | Entered Extension 12697 | -5/Extension | System corruption reached 10% 12736 | -5/Extension | Lost 4 parts (1p1n2u) 13061 | -5/Extension | Build established: Scavenger-Tank 13316 | -5/Extension | Lost 5 allies 13594 | -5/Extension | Spotted B-75 Beast 13604 | -5/Extension | Spotted B-75 Beast 13711 | -5/Extension | Rewired B-75 Beast 13712 | -5/Extension | Destroyed B-75 Beast 13827 | -5/Extension | Rescued a captive Derelict 13828 | -5/Extension | Rescued a captive Derelict 13855 | -5/Extension | Rescued a captive Derelict 14037 | -5/Extension | Build established: Scavenger-Construct 14308 | -5/Extension | Rescued A7 14334 | -5/Extension | Rescued a captive Derelict 14334 | -5/Extension | Rescued a captive Derelict 14433 | -5/Extension | Build established: Commander-Construct 14536 | -5/Extension | Discovered exit to Factory (range 10) 14537 | -5/Extension | Discovered new exit (range 6) 14592 | -5/Extension | Entered Cetus 14592 | -5/Cetus | Accompanied by 10 allies (A7) 14597 | -5/Cetus | Acquired a Cetus Manufacturing Module code from A7 14621 | -5/Cetus | Spotted Cetus Guard 14622 | -5/Cetus | Spotted Cetus Guard 14626 | -5/Cetus | Spotted Cetus Guard 14628 | -5/Cetus | Destroyed Cetus Guard 14634 | -5/Cetus | Spotted Cetus Guard 14640 | -5/Cetus | Allies destroyed Cetus Guard 14658 | -5/Cetus | Allies destroyed Cetus Guard 14666 | -5/Cetus | Destroyed Cetus Guard 14691 | -5/Cetus | Lost 4 allies 14756 | -5/Cetus | Started Cetus Manufacturing Module 14781 | -5/Cetus | Manufactured an Enhanced Grunt 14806 | -5/Cetus | Manufactured an Enhanced Grunt 14831 | -5/Cetus | Manufactured an Enhanced Grunt 14856 | -5/Cetus | Manufactured an Enhanced Grunt 14859 | -5/Cetus | Discovered new exit (range 15) 14881 | -5/Cetus | Manufactured an Enhanced Grunt 14928 | -5/Cetus | Spotted Cetus Guard 14928 | -5/Cetus | Spotted Cetus Guard 14952 | -5/Cetus | Spotted Cetus Guard 14954 | -5/Cetus | Spotted Cetus Guard 14967 | -5/Cetus | Allies destroyed Cetus Guard 14967 | -5/Cetus | Destroyed Cetus Guard 14971 | -5/Cetus | Allies destroyed Cetus Guard 14973 | -5/Cetus | Allies destroyed Cetus Guard 14995 | -5/Cetus | Discovered exit to Factory (range 15) 14998 | -5/Cetus | Lost 3 allies 15026 | -5/Cetus | Met Revision 17 15175 | -5/Cetus | Murdered A7 15179 | -5/Cetus | Extracted ID and sensor layout for unrecognized location from A7's data core 15282 | -5/Cetus | Entered Archives 15282 | -5/Archives | Accompanied by 7 allies 15328 | -5/Archives | Discovered new exit (range 16) 15362 | -5/Archives | Discovered exit to Factory (range 15) 15378 | -5/Archives | Discovered new exit (range 14) 15552 | -5/Archives | Unable to access archive contents 15563 | -5/Archives | Unable to access archive contents 15582 | -5/Archives | Unable to access archive contents 16041 | -5/Archives | Entered Hub_04(d) 16041 | -5/Hub_04(d) | Accompanied by 7 allies 16160 | -5/Hub_04(d) | Lost 4 allies 16248 | -5/Hub_04(d) | Unchained authorized (DW-4LL) 16312 | -5/Hub_04(d) | Discovered exit to Factory (range 16) 16407 | -5/Hub_04(d) | Build established: Construct 16580 | -5/Hub_04(d) | DW-4LL burst out of a wall 16698 | -5/Hub_04(d) | Network Hub disabled 16702 | -5/Hub_04(d) | Network Hub disabled 16715 | -5/Hub_04(d) | Spotted Lightning 16715 | -5/Hub_04(d) | Spotted Lightning 16717 | -5/Hub_04(d) | Entered Factory 16717 | -4/Factory | Evolved 2 slots: Utility x1, Weapon x1 17384 | -4/Factory | Destroyed 8 combat bots 17778 | -4/Factory | Discovered new exit (range 5) 17781 | -4/Factory | Identified exit to Research 17848 | -4/Factory | System corruption reached 10% 17912 | -4/Factory | Identified exit to Upper Caves 17912 | -4/Factory | Identified exit to Armory 17967 | -4/Factory | First assault squad dispatched 18242 | -4/Factory | Entered Armory 18894 | -4/Armory | Lost 4 allies 19178 | -4/Armory | Fabricated R-10 Processor? 19462 | -4/Armory | Found Gamma Bomb Array 19464 | -4/Armory | Found Gamma Bomb Array 19466 | -4/Armory | Lost 3 parts (1p2u) 19467 | -4/Armory | Found Fusion Bomb Launcher 19469 | -4/Armory | Found Fusion Bomb Launcher 19505 | -4/Armory | Discovered new exit (range 10) 19513 | -4/Armory | Identified exit to Lab 19516 | -4/Armory | Entered Lab 19516 | -4/Lab | Discovered exit to Research (range 9) 19527 | -4/Lab | Hidden lab's door opened automatically 19527 | -4/Lab | Sensor layout match revealed 19528 | -4/Lab | Gained access to the hidden lab's interior 19597 | -4/Lab | Found Alien Artifact 19611 | -4/Lab | Found Alien Artifact 19624 | -4/Lab | Found Alien Artifact 19624 | -4/Lab | Identified Integrated Reactor 19624 | -4/Lab | Installed Integrated Reactor, increased core energy generation (+10) 19635 | -4/Lab | Found Alien Artifact 19651 | -4/Lab | Found Prototype Protection 19651 | -4/Lab | Identified Exp. Powered Armor 19656 | -4/Lab | Found Prototype Energy Gun 19656 | -4/Lab | Identified Tachyon Dispersion Ray 19666 | -4/Lab | Found Prototype Energy Cannon 19671 | -4/Lab | Found Prototype Hackware 19918 | -4/Lab | Entered Research 19918 | -3/Research | Evolved 2 slots: Power x1, Utility x1 19931 | -3/Research | Identified Quantum Router 20118 | -3/Research | Revision forces began assault on 0b10 20151 | -3/Research | Met up with Revision 17++ 20484 | -3/Research | Build established: Tank 20618 | -3/Research | Research terminal network offline 20648 | -3/Research | Discovered new exit (range 5) 20650 | -3/Research | Identified exit to Testing 20779 | -3/Research | Central database locked down 20891 | -3/Research | Spotted Striker 20900 | -3/Research | Build established: Construct 20984 | -3/Research | Spotted B-86 Titan 21006 | -3/Research | Spotted Executioner 21006 | -3/Research | Spotted Striker 21051 | -3/Research | Destroyed Executioner 21070 | -3/Research | Lost 4 allies 21262 | -3/Research | Entered Testing 21415 | -3/Testing | Found Prototype Processor 21415 | -3/Testing | Identified Exp. Melee Analysis Suite 21785 | -3/Testing | Discovered new exit (range 10) 21792 | -3/Testing | Identified exit to Research 21799 | -3/Testing | Spotted PL-Z3ZD28K129 21811 | -3/Testing | Found Prototype Energy Gun 21811 | -3/Testing | Identified Hyp. EM Gauss Rifle 22001 | -3/Testing | Spotted PY-WXRAQ4OG5P 22037 | -3/Testing | Found Prototype Energy Cannon 22037 | -3/Testing | Identified Disintegrator 22368 | -3/Testing | System corruption reached 10% 22820 | -3/Testing | Entered Research 22820 | -2/Research | Evolved 2 slots: Propulsion x1, Utility x1 22920 | -2/Research | Identified exit to Quarantine 23388 | -2/Research | Identified Core Expander 23388 | -2/Research | Installed Core Expander, added new Utility slot 23727 | -2/Research | Entered Quarantine 23742 | -2/Quarantine | Found Unknown Device 23742 | -2/Quarantine | Identified Quantum Capacitor 23814 | -2/Quarantine | Cryocooling Duct disabled 23829 | -2/Quarantine | Ambient heat levels rising (+20) 23829 | -2/Quarantine | Non-combat units ordered to evacuate 23870 | -2/Quarantine | Identified Core Reset Matrix 23870 | -2/Quarantine | Identified Transdimensional Reconstructor 24168 | -2/Quarantine | Used Core Reset Matrix 24172 | -2/Quarantine | Detected hypermatrix surge 24172 | -2/Quarantine | Sensed 17 artifacts in vicinity 24186 | -2/Quarantine | Found Core Stripper 24316 | -2/Quarantine | Found Terrabomb 24320 | -2/Quarantine | Found Terrabomb 24398 | -2/Quarantine | Found Hpw. Transdimensional Reconstructor 24405 | -2/Quarantine | Found Dimensional Node Initializer 24414 | -2/Quarantine | Found Hpw. Transdimensional Reconstructor 24464 | -2/Quarantine | Build established: Alien-Construct 24536 | -2/Quarantine | Found Subatomic Replicator 24549 | -2/Quarantine | Discovered new exit (range 16) 24565 | -2/Quarantine | Identified exit to Access 24641 | -2/Quarantine | Spotted Fortress 24648 | -2/Quarantine | Destroyed Fortress 24677 | -2/Quarantine | Found Prototype Device 24677 | -2/Quarantine | Identified Thermal Barrier 24689 | -2/Quarantine | Found Prototype Device 24689 | -2/Quarantine | Identified Exp. Force Field 24694 | -2/Quarantine | Found Prototype Device 24694 | -2/Quarantine | Identified Exp. EM Shield 24715 | -2/Quarantine | Found Unknown Protection 24715 | -2/Quarantine | Identified Hvy. Insulated Plating 24719 | -2/Quarantine | Found Prototype Protection 24719 | -2/Quarantine | Identified Centrium Heavy Armor Plating 24856 | -2/Quarantine | Discovered new exit (range 5) 24856 | -2/Quarantine | Discovered new exit (range 6) 24859 | -2/Quarantine | Identified exit to Section 7 24861 | -2/Quarantine | Entered Section 7 24862 | -2/Section 7 | Detected hypermatrix surge 24862 | -2/Section 7 | Sensed 21 artifacts in vicinity 25018 | -2/Section 7 | Found Integrated Dissipator 25018 | -2/Section 7 | Installed Integrated Dissipator, increased core heat dissipation (+20) 25058 | -2/Section 7 | Spotted S7 Guard 25062 | -2/Section 7 | Destroyed S7 Guard 25068 | -2/Section 7 | Found Prototype Protection 25068 | -2/Section 7 | Identified Hvy. Regenerative Plating 25081 | -2/Section 7 | Found Core Membrane 25081 | -2/Section 7 | Installed Core Membrane, gained immunity to corruption 25215 | -2/Section 7 | Spotted S7 Guard 25223 | -2/Section 7 | Destroyed S7 Guard 25376 | -2/Section 7 | Found Integrated Thermoelectric Network 25376 | -2/Section 7 | Installed Integrated Thermoelectric Network, gained heat-energy exchange potential 25655 | -2/Section 7 | Spotted S7 Guard 25657 | -2/Section 7 | Spotted Alpha 7 25780 | -2/Section 7 | Discovered exit to Access (range 15) 25837 | -2/Section 7 | Warped through subspace 25837 | -2/Section 7 | Spotted B-99 Colossus 25839 | -2/Section 7 | Spotted Alpha 7 25839 | -2/Section 7 | Warped through subspace 25890 | -2/Section 7 | Destroyed 8 combat bots 25911 | -2/Section 7 | Initialized slip node 26111 | -2/Section 7 | First assault squad dispatched 26143 | -2/Section 7 | Spotted Executioner 26144 | -2/Section 7 | Spotted Executioner 26171 | -2/Section 7 | Destroyed Executioner 26186 | -2/Section 7 | Destroyed Executioner 26219 | -2/Section 7 | Found Prototype Processor 26219 | -2/Section 7 | Identified Exp. Targeting Computer 26223 | -2/Section 7 | Found Prototype Processor 26223 | -2/Section 7 | Identified Exp. Core Analyzer 26233 | -2/Section 7 | Found Prototype Device 26258 | -2/Section 7 | Identified Adv. Kinecellerator 26266 | -2/Section 7 | Found Transdimensional Reconstructor 26272 | -2/Section 7 | Found Transdimensional Reconstructor 26275 | -2/Section 7 | Found Transdimensional Reconstructor 26606 | -2/Section 7 | Found Integrity Redistributor 26606 | -2/Section 7 | Used Integrity Redistributor, redistributed integrity from core (-154) 26619 | -2/Section 7 | Found Integrity Redistributor 26621 | -2/Section 7 | Found Integrity Redistributor 26676 | -2/Section 7 | Found LRC Storage 26676 | -2/Section 7 | Installed LRC Storage, increased inventory capacity (+2) 26689 | -2/Section 7 | Used Subatomic Replicator to replicate LRC Energy Well 26690 | -2/Section 7 | Found LRC Energy Well 26690 | -2/Section 7 | Installed LRC Energy Well, increased energy storage capacity (+250) 26693 | -2/Section 7 | Installed LRC Energy Well, increased energy storage capacity (+250) 26696 | -2/Section 7 | Found LRC Insulator 26696 | -2/Section 7 | Installed LRC Insulator, 1 resistance modified: EM +25% 26754 | -2/Section 7 | Warped through subspace to slip node 26844 | -2/Section 7 | Entered Access 26844 | -1/Access | Evolved 2 slots: Utility x2 27094 | -1/Access | First assault squad dispatched 27094 | -1/Access | Warped through subspace 27134 | -1/Access | Build established: Alien-Gunner 27191 | -1/Access | Destroyed 8 combat bots 27285 | -1/Access | Warped through subspace 27373 | -1/Access | Destroyed 15 combat bots 27638 | -1/Access | High security lockdown imminent 27659 | -1/Access | Destroyed 7 combat bots 27718 | -1/Access | High security lockdown engaged 27778 | -1/Access | Used Integrity Redistributor, redistributed integrity from core (-171) 27836 | -1/Access | Destroyed 13 combat bots 27864 | -1/Access | Spotted Investigator 27866 | -1/Access | Build established: Alien-Mutant 27866 | -1/Access | Scanned by Researcher 27869 | -1/Access | Destroyed Investigator 27926 | -1/Access | Destroyed 10 combat bots 27942 | -1/Access | Discovered new exit (range 3) 27946 | *** | Heading to fleet! Last Messages --------------- Renamed Hvy. Thermic Nova Construct/C. 27908_ Acquired 5 matter. 27916_ K-01 Serf collects debris. 27918_ Acquired 5 matter. 27919_ Destroyed Unknown Device. 27919_ K-01 Serf collects debris. 27920_ Acquired 5 matter. 27922_ Sealed Barrier breached. 27922_ K-01 Serf collects debris. 27923_ Acquired 5 matter. 27923_ K-01 Serf collects debris. 27930_ U-05 Engineer builds a Wall. 27931_ K-01 Serf collects debris. 27941_ Main Access Shell breached. 27942_ EXIT=FOUND [Achievement: Force of Scrap] [Achievement: 50k Club] [Achievement: Punisher] [Achievement: On My Own Terms] [Achievement: True Cogmind] Map ----- +----------------------------------------------------+ | ?????????????????????????????????????????????????? | | ?????????????????????????????????????????????????? | | ?????????????????????????????????????????????????? | | ?????????????????????????????????????????????????? | | ?????????????????????????????????????????????????? | | ?????????????????????????????????????????????????? | | ?????????????????????????????????????????????????? | | ?????????????????????????????????????????????????? | | ?????????????????????????????????????????????????? | | ?????????????????????????????????????????????????? | | ?????????????????????????????????????????????????? | | ?????????????????????????????????????????????????? | | ?????????????????????????????????????????????????? | | ?????????????????????????????????????????????????? | | ?????????????????????????????????????????????????? | | ?????????????????????????????????????????????????? | | ?????????????????????????????????????????????????? | | ?????????????????????????????????????????????????? | | ?????????????????????????????????????????????????? | | ?????????????????????????????????????????????????? | | ???????????????????#"""??????????????????????????? | | ???????????????????# ???????#??????????????????? | | ???????????????????# """"""? #??????????????????? | | ???????????????????# " "? #??????????????????? | | ???????????????????# " "" "? #??????????????????? | | ???????????????????# "@ " #??????????????????? | | ???????????????????# " " #??????? ??????????? | | ???????????????????# """""" #???? ? #?????????? | | ???????????????????# #???" ? #?????????? | | ???????????????????# #???"? ??????????? | | ???????????????????""""""" """"??? ? ??????????? | | ???????????????????#"" #?? ! ?#?????????? | | ???????????????????#"" #?? ? #?????????? | | ???????????????????#"" #?? ? #?????????? | | ??????????????????##T ! #?? ??????????? | | ? ?????????????#" /]!= #?? ?????????? ? | | ? "####??????#"[!%!%** ### ???????? ? | | [=%!*#"#######""==== #""####### | | !!!***=!**!!*%=%!%*!! =% == | | #!*%!!%!%!!=!!!*!%/== ! = | | #***!%[%#######!==*###""#"##########+#####?? | | !%!%!*##"############?######????????????????? | | ? [=[ ## "#???????????????????????? | | ? ?# ## ##???????????????????????? | | ?# #???# ## !! !#????????????????????????? | | ?# #???# ## !! #????????????????????????? | | ?# #???# ## #????????????????????????? | | ?#=#??## ## #????????????????????????? | | ##!#### ######/#####+##???????????????????????? | | %|!%* #???????????????????????? | +----------------------------------------------------+ Best States ------------- Heat Dissipation 105 Coolant Potential 100 Energy Generation 119 Energy Capacity 1991 Matter Stores 300 Matter Capacity 300 Sight Range 16 Robot Scan Range 16 Terrain Scan Density 10 Jamming Range 16 Additional Mass Support 16 Armor Coverage 1200 Resistance: KI 30 Resistance: TH 10 Resistance: EM 100 Propulsion Shielding 66 Utility Shielding 66 Weapon Cycling 30 Melee Speed Boost 20 Evasion (%) 60 Targeting Accuracy 12 Melee Accuracy 6 Core Analysis 8 Recoil Reduction 5 Kinecelleration 50 Offensive Hacking 12 Defensive Hacking 25 Item Schematics ----------------- None Robot Schematics ------------------ None Fabricated ------------ R-10 Processor | x2 | -4/Armory | Preloaded Repaired ---------- Imp. Shield Generator | 17% | -7/Storage Studied --------- None Alien Tech Used ----------------- Integrated Reactor Core Expander Core Reset Matrix Core Stripper Integrated Dissipator Core Membrane Integrated Thermoelectric Network High-powered Transdimensional Reconstructor Dimensional Node Initializer Integrity Redistributor LRC Storage Subatomic Replicator LRC Energy Well LRC Insulator Transdimensional Reconstructor Achievements -------------- 50k Club Artifact Hunter Force of Scrap No Room For Error On My Own Terms Partsplosion Punisher Sunderer Superinsulated True Cogmind Well-fed Force Field Challenges ------------ None Game ------ Seed ScrapRefineryMicroactuators Manual? 0 Play Time 06:48:39 Cumulative 523.1 hours Start 2025.11.07 @ 20:59:43 End 2025.11.08 @ 04:40:11 Sessions 1 Manual Loads 0 Difficulty Rogue Special Mode None Game No. 855 Rogue 700 Adventurer 148 Explorer 7 Win Type 2 Total 25 Types 19/1/4/1/0/0/0/0/0/0 Lore% 76 Gallery% 79 Achievement% 63 Wizard Run 0 Options --------- Layout 1 ASCII 0 Keyboard 0 Movement Numpad Keybinds 0 Fullscreen 2 Font 24/Smallcaps Map View 50x40 Zoom Use 0% Tactical HUD 1 Map Filters NONE Filters NONE Steam 1 RUN: d57b24a4-1e5a-4014-83a0-19164bd4dd3b